Cogmind - Beta 13 @@@ ROGUE MODE // 2024.04.06 @ 16:07:36 Player: Vriska Result: Destroyed by 1F-O80(R) with Subdweller Beam Cannon Performance ------------- Evolutions (0) 0 Regions Visited (3) 600 Robots Destroyed (17) 85 Value Destroyed (530) 530 Prototype IDs (11) 220 Alien Tech Used (0) 0 Bonus (30) 30 TOTAL SCORE: 1465 Bonus ------- Follower Combat Kills 30 Cogmind --------- Core Integrity 0/250 Matter 70/300 Energy 84/100 System Corruption 1% Temperature Cool (9) Movement Treading (240) Ox1 Location -10/Subcaves Parts ------- > --- POWER (1) -------- (None) > --- PROPULSION (2) --- Light Treads > --- UTILITY (2) ------ Large Storage Unit > --- WEAPON (2) ------- Subdweller Beam Cannon Light Cannon > --- INVENTORY (15) --- Light Treads Medium Storage Unit Sensor Array Makeshift System Shield Mini Grenade Launcher Mini Grenade Launcher Mini Grenade Launcher Subdweller Shrapnel Launcher Mining Laser Mining Laser Peak State ------------ > --- POWER ------------ Light Ion Engine > --- PROPULSION ------- Light Treads Light Treads > --- UTILITY ---------- Large Storage Unit V3-11A's Pendant > --- WEAPON ----------- Grenade Launcher Rocket Launcher > --- INVENTORY -------- Medium Storage Unit Sensor Array Light Armor Plating Light Cannon Mini Grenade Launcher Mini Grenade Launcher Mini Grenade Launcher Mini Grenade Launcher Mining Laser Mining Laser [Rating: 11] Favorites ----------- Power Light Ion Engine Engine Light Ion Engine Propulsion Light Treads Treads Light Treads Utility Large Storage Unit Device Subdweller Optics Storage Large Storage Unit Protection Light Armor Plating Weapon Mini Grenade Launcher Energy Cannon Subdweller Beam Cannon Ballistic Gun Light Assault Rifle Ballistic Cannon Light Cannon Launcher Mini Grenade Launcher Special Weapon Mining Laser Build | -11 -10 -10 -10 ------- Run | Yrd Mat Min Sub Slots Evolved . | . . . . Power . | . . . . Propulsion . | . . . . Utility . | . . . . Weapon . | . . . . Parts Attached 32 | 6 8 4 14 Power 2 | 1 . 1 . Engine 2 | 1 . 1 . Core . | . . . . Reactor . | . . . . Propulsion 5 | 2 1 . 2 Treads 5 | 2 1 . 2 Leg . | . . . . Wheel . | . . . . Hover . | . . . . Flight . | . . . . Utility 10 | 1 4 1 4 Device 4 | . 1 . 3 Storage 4 | 1 3 . . Processor . | . . . . Hackware . | . . . . Protection 2 | . . 1 1 Artifact . | . . . . Weapon 15 | 2 3 2 8 Energy Gun . | . . . . Energy Cannon 2 | . 1 . 1 Ballistic Gun 2 | 2 . . . Ballistic Cannon 3 | . . . 3 Launcher 7 | . 2 2 3 Special Weapon 1 | . . . 1 Impact Weapon . | . . . . Slashing Weapon . | . . . . Piercing Weapon . | . . . . Special Melee Weapon . | . . . . Unidentified Prototypes 1 | . . . 1 Parts Lost 7 | . . . 7 Power 1 | . . . 1 Propulsion 2 | . . . 2 Utility 2 | . . . 2 Weapon 2 | . . . 2 Highest Loss Streak 3 | . . . 3 To Critical Strikes . | . . . . Average Slot Usage (%) 92 | . 89 100 91 Engine 13 | . 14 14 13 Treads 27 | . 27 28 27 Device 4 | . 4 . 5 Storage 14 | . 14 14 14 Protection 3 | . . 13 1 Energy Cannon 4 | . 1 . 6 Ballistic Gun 3 | . 13 . . Ballistic Cannon 1 | . . . 2 Launcher 16 | . 11 28 14 Special Weapon 2 | . . . 4 Naked Turns . | . . . . Heaviest Build 36 | 12 29 35 36 Greatest Support 40 | 40 40 40 40 Greatest Overweight (x) 1 | . . . 1 Average Overweight (x) . | . . . . Largest Inventory Capacity 15 | 8 15 15 15 Average Capacity 14 | 6 14 15 15 Most Carried 11 | 5 7 11 11 Average Carried 7 | 2 4 10 8 Final Capacity 15 | 8 15 15 15 Final Carried 10 | 2 7 10 10 Class Distribution -------------------- 100% | Mutant Dominant Class ---------------- Mutant | -10/Materials Mutant | -10/Mines Mutant | -10/Subcaves Resources | -11 -10 -10 -10 ----------- Run | Yrd Mat Min Sub Matter Collected 639 | 251 129 68 191 Remotely . | . . . . Salvage Created 338 | . 202 59 77 Parts 23 | . 16 3 4 Haulers Intercepted . | . . . . Recyclers Shooed 1 | . 1 . . Parts Field Recycled . | . . . . Retrieved Matter . | . . . . Parts Self-Destructed 9 | . . . 9 Prevented . | . . . . Kills | -11 -10 -10 -10 ------- Run | Yrd Mat Min Sub Combat Hostiles Destroyed 14 | . 8 2 4 Guns 4 | . 4 . . Cannons 1 | . 1 . . AOE 9 | . 3 2 4 Classes Destroyed 6 | . 4 . 2 Worker 1 | . 1 . . Watcher 2 | . 2 . . Swarmer 3 | . 3 . . Grunt 7 | . 5 2 . Artisan 1 | . . . 1 Subdweller 4 | . . . 4 Best Kill Streak 3 | . 3 2 2 Combat Bots Only 3 | . 3 2 2 Max Kills in Single Turn 2 | . 2 1 1 Gunslinging . | . . . . Exploded 1 | . 1 1 1 Melee . | . . . . Uniques/NPCs Destroyed . | . . . . Combat | -11 -10 -10 -10 -------- Run | Yrd Mat Min Sub Hostile Shots Fired 82 | . 40 5 37 Missed 23 | . 16 2 5 Damage Taken 1356 | . 339 58 959 Core 257 | . 38 . 219 Absorbed by Shields . | . . . . Regen/Repaired (Parts) 67 | . 67 . . Core Remaining (%) 100 | 100 . . . Volleys Fired 57 | . 24 4 29 Largest 2 | . 2 2 2 Hottest 180 | . 80 63 180 Shots Fired 94 | . 49 5 40 Gun 35 | . 35 . . Cannon 18 | . 4 . 14 Launcher 27 | . 10 5 12 Special 14 | . . . 14 Kinetic 42 | . 35 . 7 Thermal 26 | . 4 . 22 Explosive 26 | . 10 5 11 Electromagnetic . | . . . . Robot Hit Streak 7 | . 7 3 7 Robot Miss Streak 3 | . 3 3 1 Penetration Max . | . . . . Secondary Targets 1 | . 1 . . Max Gunslinging Chain 1 | . 1 . . Shots Hit Robots 50 | . 26 3 21 Core Hits 33 | . 21 2 10 Critical Kills . | . . . . Critical Parts Destroyed 1 | . 1 . . Critical Strikes 1 | . 1 . . Destroy 1 | . 1 . . Melee Attacks . | . . . . Impact . | . . . . Slashing . | . . . . Piercing . | . . . . Sneak Attacks . | . . . . Combat Hostiles . | . . . . Follow-up Attacks . | . . . . Damage Inflicted 1843 | . 856 150 837 Guns 147 | . 147 . . Cannons 268 | . 17 . 251 Explosions 1380 | . 692 150 538 Melee . | . . . . Ramming . | . . . . Kinetic 233 | . 147 . 86 Thermal 439 | . 226 . 213 Explosive 1171 | . 483 150 538 Electromagnetic . | . . . . Impact . | . . . . Slashing . | . . . . Piercing . | . . . . Highest Corruption 1 | . 1 1 1 Average Corruption 1 | . 1 1 1 Corruption Purged . | . . . . Corruption Blocked . | . . . . Effects 24 | . 8 5 11 Message Errors 6 | . 1 1 4 Matter Fused 5 | . 3 2 . Heat Flow Errors 3 | . . . 3 Energy Discharges 1 | . 1 . . Parts Fused 1 | . 1 . . Data Loss (minor) 4 | . 1 1 2 Data Loss (major) 2 | . . 1 1 Misfires 2 | . 1 . 1 Overload Shots . | . . . . Overflow Damage 26 | . . . 26 Projectiles 22 | . . . 22 Explosions 4 | . . . 4 Melee . | . . . . Knockbacks 2 | . . . 2 Impact . | . . . . Kinetic 2 | . . . 2 Secondary . | . . . . Self-Inflicted Damage 66 | . 25 23 18 Shots 3 | . 1 1 1 Rammed . | . . . . Targets Rammed . | . . . . Kicked . | . . . . Crushed . | . . . . Highest Temperature 219 | . 86 23 219 Average Temperature 34 | . 22 13 47 Received Heat Transfer 490 | . 39 21 430 Siege Activations . | . . . . Robots Corrupted . | . . . . Combat Hostiles . | . . . . Parts Fried . | . . . . Impact Corruptions . | . . . . Robots Melted . | . . . . Combat Hostiles . | . . . . Parts Melted 1 | . 1 . . Heat Transferred 509 | . 187 . 322 Parts Sabotaged . | . . . . Parts Stolen . | . . . . Parts Stripped . | . . . . Power Chain Reactions . | . . . . Alert | -11 -10 -10 -10 ------- Run | Yrd Mat Min Sub Peak Influence 222 | . 222 163 . Initial 86 | . . 86 . Average 73 | . 85 70 . Maximum Alert Level 1 | . 1 . . Low Security (%) 96 | 100 93 100 . Level 1 3 | . 6 . . Level 2 . | . . . . Level 3 . | . . . . Level 4 . | . . . . Level 5 . | . . . . High Security . | . . . . Max Security . | . . . . Squads Dispatched 1 | . 1 . . Investigation 1 | . 1 . . Extermination . | . . . . Reinforcement . | . . . . Assault . | . . . . Garrison . | . . . . Intercept . | . . . . Searches Triggered . | . . . . Construction Impeded . | . . . . Haulers Reinforced . | . . . . Active Scanning Responses . | . . . . Cargo Convoy Interrupts . | . . . . Stealth | -11 -10 -10 -10 --------- Run | Yrd Mat Min Sub Distress Signals 1 | . 1 . . Communications Jammed . | . . . . Distress Signals . | . . . . Times Spotted 25 | . 14 2 9 Peak Tracking Total 3 | . 3 2 2 Tactical Retreats . | . . . . Traps | -11 -10 -10 -10 ------- Run | Yrd Mat Min Sub Traps Triggered 4 | . 3 . 1 Indirectly . | . . . . Trap Hack Attempts . | . . . . Triggered . | . . . . Disarmed . | . . . . Reprogrammed . | . . . . Reused . | . . . . Traps Extracted . | . . . . Installed . | . . . . Triggered . | . . . . Machines | -11 -10 -10 -10 ---------- Run | Yrd Mat Min Sub Machines Disabled 4 | . 4 . . Max in Single Turn 1 | . 1 . . Machines Repaired . | . . . . Machines Dismantled . | . . . . Machines Sabotaged . | . . . . Overloaded Fab Kills . | . . . . Hacking | -11 -10 -10 -10 --------- Run | Yrd Mat Min Sub Machines Accessed 6 | . 5 . 1 Terminals 3 | . 3 . . Fabricators . | . . . . Repair Stations 1 | . 1 . . Recycling Units 1 | . 1 . . Scanalyzers . | . . . . Garrison Access . | . . . . Total Hacks 20 | . 11 . 9 Successful 18 | . 9 . 9 Failed 2 | . 2 . . Catastrophic 1 | . 1 . . Database Lockouts . | . . . . Manual . | . . . . Terminals 5 | . 5 . . Fabricators . | . . . . Repair Stations 4 | . 4 . . Recycling Units 2 | . 2 . . Scanalyzers . | . . . . Garrison Access . | . . . . Terminal Hacks 13 | . 4 . 9 Record 8 | . . . 8 Repair Station Index 1 | . 1 . . Alert Level 1 | . 1 . . Hauler Manifests 1 | . 1 . . Zone Layout 1 | . 1 . . Derelict Proto ID Bank 1 | . . . 1 Fabricator Hacks . | . . . . Repair Station Hacks 3 | . 3 . . Scan Component 2 | . 2 . . Repair 1 | . 1 . . Recycling Unit Hacks 2 | . 2 . . Report Inventory 1 | . 1 . . Retrieve Matter 1 | . 1 . . Scanalyzer . | . . . . Garrison Access Hacks . | . . . . Unauthorized Hacks . | . . . . Terminals . | . . . . Fabricators . | . . . . Repair Stations . | . . . . Recycling Units . | . . . . Scanalyzers . | . . . . Garrison Access . | . . . . Data Cores Recovered . | . . . . Used . | . . . . Hacking Detections 3 | . 3 . . Full Trace Events 1 | . 1 . . Feedback Events . | . . . . Feedback Blocked . | . . . . Robot Schematics Acquired . | . . . . Robots Built . | . . . . Authchips . | . . . . Time . | . . . . Total Robot Build Rating . | . . . . Part Schematics Acquired . | . . . . Parts Built . | . . . . Authchips . | . . . . Time . | . . . . Total Part Build Rating . | . . . . Parts Repaired 1 | . 1 . . Time 26 | . 26 . . Parts Recycled . | . . . . Recycled Matter . | . . . . Retrieved Matter . | . . . . Retrieved Components . | . . . . Parts Scanalyzed . | . . . . Part Schematics Acquired . | . . . . Parts Damaged . | . . . . Bothacking | -11 -10 -10 -10 ------------ Run | Yrd Mat Min Sub Used RIF Installer . | . . . . Robots Hacked . | . . . . Non-combat . | . . . . Combat . | . . . . Robot Hacks Applied . | . . . . Relay Couplers Released . | . . . . Fabnet Peak Effective % . | . . . . Robots Rewired . | . . . . Allies Hacked . | . . . . Hacks Repelled . | . . . . Allies | -11 -10 -10 -10 -------- Run | Yrd Mat Min Sub Total Allies 1 | . . . 1 Largest Group 1 | . . . 1 Highest-Rated Group 19 | . . . 19 Highest-Rated Ally 19 | . . . 19 Total Orders . | . . . . Ally Attacks 3 | . . . 3 Total Damage 55 | . . . 55 Kills 1 | . . . 1 Allies Corrupted . | . . . . Allies Melted . | . . . . Intel | -11 -10 -10 -10 ------- Run | Yrd Mat Min Sub Robot Analysis Total . | . . . . Derelict Logs Recovered . | . . . . Drone Launches . | . . . . Drone Recoveries . | . . . . Exploration | -11 -10 -10 -10 ------------- Run | Yrd Mat Min Sub Turns Passed 3132 | 98 799 589 1646 Spaces Moved 1759 | 59 421 342 937 Core 11 | 11 . . . Treads 1748 | 48 421 342 937 Legs . | . . . . Wheels . | . . . . Hover . | . . . . Flight . | . . . . Fastest Speed 50 | 50 160 160 160 Average Speed 160 | 139 160 160 161 Slowest Speed 240 | 160 160 160 240 Overloaded Moves . | . . . . Propulsion Burnouts . | . . . . Robots Hopped . | . . . . Cave-ins Triggered . | . . . . Exploration Rate (%) 45 | 4 68 55 56 Regions Visited 3 Branch Regions 2 Pre-discovered Areas 1 | . . 1 . Known Exits Taken . | . . . . Unknown Exits Taken 3 | 1 1 1 . Scrap Searched 5 | . . 2 3 Spaces Dug . | . . . . Terrain Destroyed 172 | . 69 44 59 Melee . | . . . . Projectile . | . . . . AOE 172 | . 69 44 59 Terrain Rammed . | . . . . Walls Destroyed . | . . . . Machines Disabled . | . . . . Actions | -11 -10 -10 -10 --------- Run | Yrd Mat Min Sub Total 1963 | 76 510 377 1000 Wait 60 | . 31 23 6 Move 1756 | 58 420 341 937 Hop . | . . . . Pick Up 37 | 10 16 4 7 Fast Attach . | . . . . Attach 21 | 6 6 . 9 Detach 6 | . 2 . 4 Swap 11 | . 2 4 5 Drop 15 | 2 9 1 3 Fire 57 | . 24 4 29 Melee . | . . . . Ram . | . . . . Kick . | . . . . Crush . | . . . . Escape Stasis . | . . . . Rewire . | . . . . Trap . | . . . . Miscellaneous . | . . . . Route ------- -11/Scrapyard -10/Materials (discovered 3 exits: [*Mat x2] / [*Min]) -10/Mines (discovered 2 exits: [*Mat] / *Sub) -10/Subcaves (discovered 2 exits: [*Mat x2]) History --------- Turn | Location | Event 6 | -11/Scrapyard | Discovered new exit (range 16) 99 | -11/Scrapyard | Entered Materials 305 | -10/Materials | Build established: Mutant 359 | -10/Materials | Discovered new exit (range 16) 473 | -10/Materials | Repaired Lgt. Treads 612 | -10/Materials | Discovered new exit (range 13) 684 | -10/Materials | Discovered new exit (range 10) 898 | -10/Materials | Entered Mines 899 | -10/Mines | Learned location of Storage (-7) 1046 | -10/Mines | Received a Rocket Launcher from a helpful Derelict 1137 | -10/Mines | Discovered new exit (range 12) 1371 | -10/Mines | Discovered new exit (range 5) 1487 | -10/Mines | Entered Subcaves 1488 | -10/Subcaves | Ambushed by Subdwellers from Twisted Machinery 1489 | -10/Subcaves | Ambushed by Subdweller buried in earth 1597 | -10/Subcaves | Visited triangular shrine 1608 | -10/Subcaves | Found Prototype Device 1610 | -10/Subcaves | Identified V3-11A's Pendant 1615 | -10/Subcaves | Befriended Subdweller 1655 | -10/Subcaves | Discovered new exit (range 15) 1869 | -10/Subcaves | A swath of the cavern ceiling suddenly collapsed 1971 | -10/Subcaves | Core integrity fell below 50% 2000 | -10/Subcaves | Lost 3 parts (1u2w) 2329 | -10/Subcaves | Shifting Twisted Machinery released Sub. Optics 2333 | -10/Subcaves | Shifting Twisted Machinery released Sub. Beam Cannon 2407 | -10/Subcaves | Discovered new exit (range 10) 2635 | -10/Subcaves | Visited 4L-MR0's lab 2924 | -10/Subcaves | Shifting Twisted Machinery released Spk. Treads 2972 | -10/Subcaves | Shifting Twisted Machinery released Piercing Trap 3095 | -10/Subcaves | Core integrity fell below 20% 3133 | -10/Subcaves | Destroyed by 1F-O80(R) with Subdweller Beam Cannon Last Messages --------------- 4L-MR0 mumbles: "I'm surprised some of them are even willing to come in here given their fear of my usual visitors." Subatomizers dissect the Wheel, destroying it. Dropped Broken Sub. Optics. Searching scrap... Found Flamer. Found Slug Cannon. Found 26 Matter. Acquired 26 matter. Subatomizers dissect the Flamer. Spk. Treads falls loose from the Twisted Machinery. Acquired Spk. Treads. Piercing Trap falls loose from the Twisted Machinery. Lgt. Ion Engine destroyed. 1F-O80(R) knocked back. Spk. Treads destroyed. 1F-O80(R) knocked back. Map ----- +----------------------------------------------------+ | ?????????????????????????????????????????????????? | | ?????????????????????????????????????????????????? | | ?????????????????????????????????????????????????? | | ?????????????????????????????????????????????????? | | ?????????????????????????????????????????????????? | | ????????????????###??????????????????????????????? | | ????????????##### #??????????????????????????????? | | ????????????# ## ##?????????????????????????????? | | ????????????# #?????????????????????????????? | | ????????????## #?????????????????????????????? | | ?????????????### #?????????????????????????????? | | ???????????###### ##????????????????????????????? | | ?????###???# ## #????????????????????????????? | | ?????# ###?# #????????????????????????????? | | ?????# ### #????????????????????????????? | | ?????# ##????????????????????????????? | | ?????## ## & #?????????????????????????????? | | ??????##### ##"" #?????????????????????????????? | | ?????????## ###"##?????????????????????????????? | | ########## #####??????????????????????????????? | | ## ## ## ##??????????????????????????????? | | ## "#####??????????????????????????? | | """ "####???????????????????????? | | # "" " #?####??????????????????? | | ## " """" ###% # # #"?????????????? | | #?## """ @ R """""?????????????? | | ##?## ## "### " """" ???????????? | | #### ###""#?## "###### # ????????????? | | #?#""#??##### ##?????????????????????? | | #?####??????# ####??????????????????????? | | ## #???????????###?????????????????????????? | | #####???????????????????????????????????????? | | #???????????????????????????????????????????? | | #???????????????????????????????????????????? | | ## ##?????????????????????????????????????????? | | ### ###???????????????????????????????????????? | | #?# #???????????????????????????????????????? | | ### #???????????????????????????????????????? | | ## ## #???????????????????????????????????????? | | # ### #???????????????????????????????????????? | | # ## #???????????????????????????????????????? | | # ##???????????????????????????????????????? | | # #????????????????????????????????????????? | | #?????????????????????????????????????????? | | #????????????????###########??????????????? | | ####????????????## # ## #??####????????? | | #### ######???????# #### #?????#### | | ????# ## ##??????# ##???## | | ???## ##?????# ### ##### | | ???# ##???## ##?## | +----------------------------------------------------+ Best States ------------- Heat Dissipation 25 Energy Generation 10 Energy Capacity 250 Matter Stores 294 Matter Capacity 300 Sight Range 21 Robot Scan Range 14 Terrain Scan Density 10 Armor Coverage 150 Evasion (%) 50 Recoil Reduction 2 Item Schematics ----------------- None Robot Schematics ------------------ None Fabricated ------------ Nothing Alien Tech Used ----------------- None Achievements -------------- Oops Challenges ------------ None Game ------ Seed GunParticlePlating Manual? 0 Play Time 00:22:59 Cumulative 6.5 hours Start 2024.04.06 @ 15:46:02 End 2024.04.06 @ 16:07:36 Sessions 1 Manual Loads 0 Difficulty Rogue Special Mode None Game No. 13 Rogue 13 Adventurer 0 Explorer 0 Win Type - Total 0 Types 0/0/0/0/0/0/0/0/0 Lore% 16 Gallery% 13 Achievement% 14 Wizard Run 0 Options --------- Layout 1 ASCII 0 Keyboard 0 Movement Arrows Keybinds 0 Fullscreen 1 Font 24/Smallcaps Map View 50x35 Zoom Use 0% Tactical HUD 0 Map Filters NONE Filters NONE Steam 1 RUN: d89b1c6c-0b35-4331-ab69-8be53e302650